Workbook

Sheet Dashboard
B2: "Blue" values are inputs to be entered and all other numbers are calculated values.
B5: Grain Characteristics | G5: Option #1 | H5: Option #2
G6: - | H6: -
B7: Commodity | G7: Corn | H7: Corn
B8: Bushels | G8: 1000 | H8: 1000
B9: Year | G9: 3 yr avg | H9: 3 yr avg
B10: Regional Grain Location | G10: Eastern Shore | H10: Eastern Shore
B11: Month of Sale | G11: January | H11: February
B12: Expected Futures price ($/BU) | G12: =IF(G7="Wheat",Basis!R4,IF(G7="Corn",Basis!R5,IF(G7="Soybeans",Basis!R3))) -> 5.2406 | H12: =IF(H7="Wheat",Basis!S4,IF(H7="Corn",Basis!S5,IF(H7="Soybeans",Basis!S3))) -> 5.2406
B13: Calculated Target Price ($/BU) | G13: =Basis!R6 -> 5.450573893 | H13: =Basis!S6 -> 5.472279552
B14: Total Price | G14: =Basis!R1 -> 5450.573893 | H14: =Basis!S1 -> 5472.279552

Sheet Basis (hidden)
A1: Drop down lists | G1: Commodity | H1: Number of Bushels | I1: Year | J1: Regional Grain Location | K1: Month of Sale | L1: Basis | M1: Base | N1: Alternate | P1: Total price | R1: =R2*R6 -> 5450.573893 | S1: =S2*S6 -> 5472.279552
G2: Corn | H2: 300-399 | I2: 2015 | J2: Eastern Shore | K2: January | L2: -0.261 | M2: =IF(AND(R$9=$G2,R$17=$J2,R$12=$I2,R$18=$K2),$L2,0) -> 0 | N2: =IF(AND(S$9=$G2,S$17=$J2,S$12=$I2,S$18=$K2),$L2,0) -> 0 | P2: Expected Bushels | R2: =$R$11 -> 1000 | S2: =$S$11 -> 1000
G3: Corn | H3: 300-399 | I3: 2015 | J3: Eastern Shore | K3: Feburary | L3: -0.1768421053 | M3: 0 | N3: 0 | P3: Model predicted futures (soy) | R3: =VALUE(VLOOKUP($R$18,$R$22:$U$33,3,FALSE)) -> 12.13 | S3: =VALUE(VLOOKUP($S$18,$R$22:$U$33,3,FALSE)) -> 12.13
G4: Corn | H4: 300-399 | I4: 2015 | J4: Eastern Shore | K4: March | L4: -0.1694318182 | M4: 0 | N4: 0 | P4: Model predicted futures (wheat) | R4: =VALUE(VLOOKUP($R$18,$R$22:$U$33,4,FALSE)) -> 67.306 | S4: =VALUE(VLOOKUP($S$18,$R$22:$U$33,4,FALSE)) -> 67.306
A5: Commodity | B5: Number of Bushels | C5: Year | D5: Regional GrainLocation | E5: Month of Sale | F5: Bushels | G5: Corn | H5: 300-399 | I5: 2015 | J5: Eastern Shore | K5: April | L5: 0.1103571429 | M5: 0 | N5: 0 | P5: Model predicted futures (corn) | R5: =VALUE(VLOOKUP($R$18,$R$22:$S$33,2,FALSE)) -> 5.2406 | S5: =VALUE(VLOOKUP($S$18,$R$22:$U$33,2,FALSE)) -> 5.2406
A6: - | B6: 25 | C6: - | D6: - | E6: - | F6: - | G6: Corn | H6: 300-399 | I6: 2015 | J6: Eastern Shore | K6: May | L6: 0.107625 | M6: 0 | N6: 0 | P6: Model predicted price | R6: =SUM(M2:M1298)+R16 -> 5.450573893 | S6: =SUM(N2:N1298)+S16 -> 5.472279552
A7: Corn | B7: =B6+25 -> 50 | C7: 2015 | D7: Eastern Shore | E7: January | F7: 500 | G7: Corn | H7: 300-399 | I7: 2015 | J7: Eastern Shore | K7: June | L7: 0.07602272727 | M7: 0 | N7: 0
A8: Soybeans | B8: =B7+25 -> 75 | C8: 2016 | D8: Harrisonburg | E8: February | F8: 600 | G8: Corn | H8: 300-399 | I8: 2015 | J8: Eastern Shore | K8: July | L8: 0.06647727273 | M8: 0 | N8: 0 | P8: Grain characteristics (shaded cells are inputs) | R8: Base | S8: Alternate
A9: Wheat | B9: 100 | C9: 2017 | D9: Middle Peninsula | E9: March | F9: 700 | G9: Corn | H9: 300-399 | I9: 2015 | J9: Eastern Shore | K9: August | L9: 0.2328571429 | M9: 0 | N9: 0 | P9: Commodity | R9: =Dashboard!G7 -> Corn | S9: =Dashboard!H7 -> Corn
B10: 125 | C10: 2018 | D10: Norfolk | E10: April | F10: 800 | G10: Corn | H10: 300-399 | I10: 2015 | J10: Eastern Shore | K10: September | L10: -0.08797619048 | M10: 0 | N10: 0
B11: 150 | C11: 2019 | D11: Norfolk Terminal | E11: May | F11: 900 | G11: Corn | H11: 300-399 | I11: 2015 | J11: Eastern Shore | K11: October | L11: -0.2505681818 | M11: 0 | N11: 0 | P11: Bushels | R11: =Dashboard!G8 -> 1000 | S11: =Dashboard!H8 -> 1000
B12: 175 | C12: 2020 | D12: Petersburg | E12: June | F12: 1000 | G12: Corn | H12: 300-399 | I12: 2015 | J12: Eastern Shore | K12: November | L12: -0.193125 | M12: 0 | N12: 0 | P12: Year | R12: =Dashboard!G9 -> 3 yr avg | S12: =Dashboard!H9 -> 3 yr avg
B13: 200 | C13: 2021 | D13: Richmond | E13: July | F13: 1200 | G13: Corn | H13: 300-399 | I13: 2015 | J13: Eastern Shore | K13: December | L13: -0.02318181818 | M13: 0 | N13: 0
B14: 225 | C14: 2022 | D14: Roanoke | E14: August | F14: 1500 | G14: Corn | H14: 400-499 | I14: 2016 | J14: Eastern Shore | K14: January | L14: -0.1059210526 | M14: 0 | N14: 0
B15: 250 | C15: 3 yr avg | D15: Wakefield | E15: September | F15: 2000 | G15: Corn | H15: 400-499 | I15: 2016 | J15: Eastern Shore | K15: February | L15: -0.00525 | M15: 0 | N15: 0
B16: 275 | C16: 5 yr avg | E16: October | F16: 2500 | G16: Corn | H16: 400-499 | I16: 2016 | J16: Eastern Shore | K16: March | L16: -0.09888636364 | M16: 0 | N16: 0 | P16: Futures price, $/BU | R16: =Dashboard!G12 -> 5.2406 | S16: =Dashboard!H12 -> 5.2406
B17: 300 | E17: November | F17: 3000 | G17: Corn | H17: 400-499 | I17: 2016 | J17: Eastern Shore | K17: April | L17: -0.006785714286 | M17: 0 | N17: 0 | P17: Grain Market | R17: =Dashboard!G10 -> Eastern Shore | S17: =Dashboard!H10 -> Eastern Shore
B18: 325 | E18: December | F18: 3500 | G18: Corn | H18: 400-499 | I18: 2016 | J18: Eastern Shore | K18: May | L18: 0.008333333333 | M18: 0 | N18: 0 | P18: Month of Sale | R18: =Dashboard!G11 -> January | S18: =Dashboard!H11 -> February
B19: 350 | F19: 4000 | G19: Corn | H19: 400-499 | I19: 2016 | J19: Eastern Shore | K19: June | L19: -0.2726136364 | M19: 0 | N19: 0
B20: 375 | F20: 4500 | G20: Corn | H20: 400-499 | I20: 2016 | J20: Eastern Shore | K20: July | L20: -0.053 | M20: 0 | N20: 0 | T20: Nearby Contract
B21: 400 | F21: 5000 | G21: Corn | H21: 400-499 | I21: 2016 | J21: Eastern Shore | K21: August | L21: 0.01206521739 | M21: 0 | N21: 0 | R21: Sale Month | S21: Corn | T21: Soybeans | U21: Wheat
B22: 425 | F22: 10000 | G22: Corn | H22: 400-499 | I22: 2016 | J22: Eastern Shore | K22: September | L22: 0.07895238095 | M22: 0 | N22: 0 | R22: January | S22: =SUBSTITUTE(SUBSTITUTE(Futures1!$G$29,"-",0),"s",0)/10000 -> 5.2406 | T22: =SUBSTITUTE(SUBSTITUTE(Futures1!$G$9,"-",0),"s",0)/100 -> 12.13 | U22: =SUBSTITUTE(SUBSTITUTE(Futures1!$G$46,"-",0),"s",0)/10000 -> 67.306
B23: 450 | G23: Corn | H23: 400-499 | I23: 2016 | J23: Eastern Shore | K23: October | L23: -0.1198809524 | M23: 0 | N23: 0 | R23: February | S23: =SUBSTITUTE(SUBSTITUTE(Futures1!$G$29,"-",0),"s",0)/10000 -> 5.2406 | T23: =SUBSTITUTE(SUBSTITUTE(Futures1!$G$9,"-",0),"s",0)/100 -> 12.13 | U23: =SUBSTITUTE(SUBSTITUTE(Futures1!$G$46,"-",0),"s",0)/10000 -> 67.306
B24: 475 | G24: Corn | H24: 400-499 | I24: 2016 | J24: Eastern Shore | K24: November | L24: 0.03023809524 | M24: 0 | N24: 0 | R24: March | S24: =SUBSTITUTE(SUBSTITUTE(Futures1!$G$30,"-",0),"s",0)/10000 -> 5.0104 | T24: =SUBSTITUTE(SUBSTITUTE(Futures1!$G$10,"-",0),"s",0)/100 -> 12.1775 | U24: =SUBSTITUTE(SUBSTITUTE(Futures1!$G$47,"-",0),"s",0)/10000 -> 6.88
B25: 500 | G25: Corn | H25: 400-499 | I25: 2016 | J25: Eastern Shore | K25: December | L25: 0.1092142857 | M25: 0 | N25: 0 | R25: April | S25: =SUBSTITUTE(SUBSTITUTE(Futures1!$G$30,"-",0),"s",0)/10000 -> 5.0104 | T25: =SUBSTITUTE(SUBSTITUTE(Futures1!$G$10,"-",0),"s",0)/100 -> 12.1775 | U25: =SUBSTITUTE(SUBSTITUTE(Futures1!$G$47,"-",0),"s",0)/10000 -> 6.88
B26: 525 | G26: Corn | H26: 500-599 | I26: 2017 | J26: Eastern Shore | K26: January | L26: 0.2327757353 | M26: 0 | N26: 0 | R26: May | S26: =SUBSTITUTE(SUBSTITUTE(Futures1!$G$25,"-",0),"s",0)/10000 -> 5.0104 | T26: =SUBSTITUTE(SUBSTITUTE(Futures1!$G$4,"-",0),"s",0)/100 -> 12.7675 | U26: =SUBSTITUTE(SUBSTITUTE(Futures1!$G$43,"-",0),"s",0)/10000 -> 6.6102
B27: 550 | G27: Corn | H27: 500-599 | I27: 2017 | J27: Eastern Shore | K27: February | L27: 0.2078947368 | M27: 0 | N27: 0 | R27: June | S27: =SUBSTITUTE(SUBSTITUTE(Futures1!$G$25,"-",0),"s",0)/10000 -> 5.0104 | T27: =SUBSTITUTE(SUBSTITUTE(Futures1!$G$4,"-",0),"s",0)/100 -> 12.7675 | U27: =SUBSTITUTE(SUBSTITUTE(Futures1!$G$43,"-",0),"s",0)/10000 -> 6.6102
B28: 575 | G28: Corn | H28: 500-599 | I28: 2017 | J28: Eastern Shore | K28: March | L28: 0.332173913 | M28: 0 | N28: 0 | R28: July | S28: =SUBSTITUTE(SUBSTITUTE(Futures1!$G$27,"-",0),"s",0)/10000 -> 5.17 | T28: =SUBSTITUTE(SUBSTITUTE(Futures1!$G$5,"-",0),"s",0)/100 -> 12.12 | U28: =SUBSTITUTE(SUBSTITUTE(Futures1!$G$44,"-",0),"s",0)/10000 -> 6.7
B29: 600 | G29: Corn | H29: 500-599 | I29: 2017 | J29: Eastern Shore | K29: April | L29: 0.2998684211 | M29: 0 | N29: 0 | R29: August | S29: =SUBSTITUTE(SUBSTITUTE(Futures1!$G$27,"-",0),"s",0)/10000 -> 5.17 | T29: =SUBSTITUTE(SUBSTITUTE(Futures1!$G$6,"-",0),"s",0)/100 -> 11.9775 | U29: =SUBSTITUTE(SUBSTITUTE(Futures1!$G$44,"-",0),"s",0)/10000 -> 6.7
B30: 625 | G30: Corn | H30: 500-599 | I30: 2017 | J30: Eastern Shore | K30: May | L30: 0.2738636364 | M30: 0 | N30: 0 | R30: September | S30: =SUBSTITUTE(SUBSTITUTE(Futures1!$G$28,"-",0),"s",0)/10000 -> 5.2206 | T30: =SUBSTITUTE(SUBSTITUTE(Futures1!$G$7,"-",0),"s",0)/100 -> 12.075 | U30: =SUBSTITUTE(SUBSTITUTE(Futures1!$G$45,"-",0),"s",0)/10000 -> 6.7104
B31: 650 | G31: Corn | H31: 500-599 | I31: 2017 | J31: Eastern Shore | K31: June | L31: 0.2871590909 | M31: 0 | N31: 0 | R31: October | S31: =SUBSTITUTE(SUBSTITUTE(Futures1!$G$28,"-",0),"s",0)/10000 -> 5.2206 | T31: =SUBSTITUTE(SUBSTITUTE(Futures1!$G$7,"-",0),"s",0)/100 -> 12.075 | U31: =SUBSTITUTE(SUBSTITUTE(Futures1!$G$45,"-",0),"s",0)/10000 -> 6.7104
B32: 675 | G32: Corn | H32: 500-599 | I32: 2017 | J32: Eastern Shore | K32: July | L32: 0.124 | M32: 0 | N32: 0 | R32: November | S32: =SUBSTITUTE(SUBSTITUTE(Futures1!$G$28,"-",0),"s",0)/10000 -> 5.2206 | T32: =SUBSTITUTE(SUBSTITUTE(Futures1!$G$8,"-",0),"s",0)/100 -> 12.0875 | U32: =SUBSTITUTE(SUBSTITUTE(Futures1!$G$45,"-",0),"s",0)/10000 -> 6.7104
B33: 700 | G33: Corn | H33: 500-599 | I33: 2017 | J33: Eastern Shore | K33: August | L33: 0.2588043478 | M33: 0 | N33: 0 | R33: December | S33: =SUBSTITUTE(SUBSTITUTE(Futures1!$G$29,"-",0),"s",0)/10000 -> 5.2406 | T33: =SUBSTITUTE(SUBSTITUTE(Futures1!$G$8,"-",0),"s",0)/100 -> 12.0875 | U33: =SUBSTITUTE(SUBSTITUTE(Futures1!$G$46,"-",0),"s",0)/10000 -> 67.306
B34: 725 | G34: Corn | H34: 500-599 | I34: 2017 | J34: Eastern Shore | K34: September | L34: 0.0605 | M34: 0 | N34: 0
B35: 750 | G35: Corn | H35: 500-599 | I35: 2017 | J35: Eastern Shore | K35: October | L35: -0.04386363636 | M35: 0 | N35: 0
B36: 775 | G36: Corn | H36: 500-599 | I36: 2017 | J36: Eastern Shore | K36: November | L36: -0.001785714286 | M36: 0 | N36: 0
B37: 800 | G37: Corn | H37: 500-599 | I37: 2017 | J37: Eastern Shore | K37: December | L37: -0.0055 | M37: 0 | N37: 0
B38: 825 | G38: Corn | H38: 600-699 | I38: 2018 | J38: Eastern Shore | K38: January | L38: 0.2027380952 | M38: 0 | N38: 0
B39: 850 | G39: Corn | H39: 600-699 | I39: 2018 | J39: Eastern Shore | K39: February | L39: 0.2357894737 | M39: 0 | N39: 0
B40: 875 | G40: Corn | H40: 600-699 | I40: 2018 | J40: Eastern Shore | K40: March | L40: 0.3489285714 | M40: 0 | N40: 0
B41: 900 | G41: Corn | H41: 600-699 | I41: 2018 | J41: Eastern Shore | K41: April | L41: 0.2501190476 | M41: 0 | N41: 0
B42: 925 | G42: Corn | H42: 600-699 | I42: 2018 | J42: Eastern Shore | K42: May | L42: 0.3 | M42: 0 | N42: 0
B43: 950 | G43: Corn | H43: 600-699 | I43: 2018 | J43: Eastern Shore | K43: June | L43: -0.1898863636 | M43: 0 | N43: 0
B44: 975 | G44: Corn | H44: 600-699 | I44: 2018 | J44: Eastern Shore | K44: July | L44: 0.154625 | M44: 0 | N44: 0
B45: 1000 | G45: Corn | H45: 600-699 | I45: 2018 | J45: Eastern Shore | K45: August | L45: 0.46125 | M45: 0 | N45: 0
B46: 1025 | G46: Corn | H46: 600-699 | I46: 2018 | J46: Eastern Shore | K46: September | L46: 0.1196590909 | M46: 0 | N46: 0
B47: 1050 | G47: Corn | H47: 600-699 | I47: 2018 | J47: Eastern Shore | K47: October | L47: 0.199875 | M47: 0 | N47: 0
B48: 1075 | G48: Corn | H48: 600-699 | I48: 2018 | J48: Eastern Shore | K48: November | L48: 0.08804347826 | M48: 0 | N48: 0
B49: 1100 | G49: Corn | H49: 600-699 | I49: 2018 | J49: Eastern Shore | K49: December | L49: 0.2025 | M49: 0 | N49: 0
B50: 1125 | G50: Corn | H50: 700-799 | I50: 2019 | J50: Eastern Shore | K50: January | L50: 0.1180952381 | M50: 0 | N50: 0
B51: 1150 | G51: Corn | H51: 700-799 | I51: 2019 | J51: Eastern Shore | K51: February | L51: 0.1921052632 | M51: 0 | N51: 0
B52: 1175 | G52: Corn | H52: 700-799 | I52: 2019 | J52: Eastern Shore | K52: March | L52: 0.3186904762 | M52: 0 | N52: 0
B53: 1200 | G53: Corn | H53: 700-799 | I53: 2019 | J53: Eastern Shore | K53: April | L53: 0.3429761905 | M53: 0 | N53: 0
B54: 1225 | G54: Corn | H54: 700-799 | I54: 2019 | J54: Eastern Shore | K54: May | L54: 0.4123863636 | M54: 0 | N54: 0
B55: 1250 | G55: Corn | H55: 700-799 | I55: 2019 | J55: Eastern Shore | K55: June | L55: 0.37775 | M55: 0 | N55: 0
B56: 1275 | G56: Corn | H56: 700-799 | I56: 2019 | J56: Eastern Shore | K56: July | L56: 0.3695454545 | M56: 0 | N56: 0
B57: 1300 | G57: Corn | H57: 700-799 | I57: 2019 | J57: Eastern Shore | K57: August | L57: 0.4326136364 | M57: 0 | N57: 0
B58: 1325 | G58: Corn | H58: 700-799 | I58: 2019 | J58: Eastern Shore | K58: September | L58: 0.158375 | M58: 0 | N58: 0
B59: 1350 | G59: Corn | H59: 700-799 | I59: 2019 | J59: Eastern Shore | K59: October | L59: 0.1272826087 | M59: 0 | N59: 0
B60: 1375 | G60: Corn | H60: 700-799 | I60: 2019 | J60: Eastern Shore | K60: November | L60: 0.13875 | M60: 0 | N60: 0
B61: 1400 | G61: Corn | H61: 700-799 | I61: 2019 | J61: Eastern Shore | K61: December | L61: 0.2008333333 | M61: 0 | N61: 0
B62: 1425 | G62: Corn | H62: 300-399 | I62: 2020 | J62: Eastern Shore | K62: January | L62: 0.1976190476 | M62: 0 | N62: 0
B63: 1450 | G63: Corn | H63: 300-399 | I63: 2020 | J63: Eastern Shore | K63: February | L63: 0.2143263158 | M63: 0 | N63: 0
B64: 1475 | G64: Corn | H64: 300-399 | I64: 2020 | J64: Eastern Shore | K64: March | L64: 0.2769818182 | M64: 0 | N64: 0
B65: 1500 | G65: Corn | H65: 300-399 | I65: 2020 | J65: Eastern Shore | K65: April | L65: 0.360952381 | M65: 0 | N65: 0
B66: 1525 | G66: Corn | H66: 300-399 | I66: 2020 | J66: Eastern Shore | K66: May | L66: 0.343 | M66: =IF(AND(R$9=$G66,R$17=$J66,R$12=$I66,R$18=$K66),$L66,0) -> 0 | N66: =IF(AND(S$9=$G66,S$17=$J66,S$12=$I66,S$18=$K66),$L66,0) -> 0
B67: 1550 | G67: Corn | H67: 300-399 | I67: 2020 | J67: Eastern Shore | K67: June | L67: 0.4088636364 | M67: 0 | N67: 0
B68: 1575 | G68: Corn | H68: 300-399 | I68: 2020 | J68: Eastern Shore | K68: July | L68: 0.4693181818 | M68: 0 | N68: 0
B69: 1600 | G69: Corn | H69: 300-399 | I69: 2020 | J69: Eastern Shore | K69: August | L69: 0.298452381 | M69: 0 | N69: 0
B70: 1625 | G70: Corn | H70: 300-399 | I70: 2020 | J70: Eastern Shore | K70: September | L70: 0.1661904762 | M70: 0 | N70: 0
B71: 1650 | G71: Corn | H71: 300-399 | I71: 2020 | J71: Eastern Shore | K71: October | L71: 0.06602272727 | M71: 0 | N71: 0
B72: =B71+25 -> 1675 | G72: Corn | H72: 300-399 | I72: 2020 | J72: Eastern Shore | K72: November | L72: 0.049125 | M72: 0 | N72: 0
B73: 1700 | G73: Corn | H73: 300-399 | I73: 2020 | J73: Eastern Shore | K73: December | L73: 0.2453409091 | M73: 0 | N73: 0
B74: 1725 | G74: Corn | H74: 400-499 | I74: 2021 | J74: Eastern Shore | K74: January | L74: 0.2260526316 | M74: 0 | N74: 0
B75: 1750 | G75: Corn | H75: 400-499 | I75: 2021 | J75: Eastern Shore | K75: February | L75: 0.2243965517 | M75: 0 | N75: 0
B76: 1775 | G76: Corn | H76: 400-499 | I76: 2021 | J76: Eastern Shore | K76: March | L76: 0.2619565217 | M76: 0 | N76: 0
B77: 1800 | G77: Corn | H77: 400-499 | I77: 2021 | J77: Eastern Shore | K77: April | L77: 0.2592857143 | M77: 0 | N77: 0
B78: 1825 | G78: Corn | H78: 400-499 | I78: 2021 | J78: Eastern Shore | K78: May | L78: 0.136125 | M78: 0 | N78: 0
B79: 1850 | G79: Corn | H79: 400-499 | I79: 2021 | J79: Eastern Shore | K79: June | L79: 0.3159090909 | M79: 0 | N79: 0
B80: 1875 | G80: Corn | H80: 400-499 | I80: 2021 | J80: Eastern Shore | K80: July | L80: 0.1491666667 | M80: 0 | N80: 0
B81: 1900 | G81: Corn | H81: 400-499 | I81: 2021 | J81: Eastern Shore | K81: August | L81: 0.2877272727 | M81: 0 | N81: 0
B82: 1925 | G82: Corn | H82: 400-499 | I82: 2021 | J82: Eastern Shore | K82: September | L82: 0.06404761905 | M82: 0 | N82: 0
B83: 1950 | G83: Corn | H83: 400-499 | I83: 2021 | J83: Eastern Shore | K83: October | L83: 0.07380952381 | M83: 0 | N83: 0
B84: 1975 | G84: Corn | H84: 400-499 | I84: 2021 | J84: Eastern Shore | K84: November | L84: 0.09107142857 | M84: 0 | N84: 0
B85: 2000 | G85: Corn | H85: 400-499 | I85: 2021 | J85: Eastern Shore | K85: December | L85: 0.1511363636 | M85: 0 | N85: 0
B86: 2025 | G86: Corn | H86: 500-599 | I86: 2022 | J86: Eastern Shore | K86: January | L86: 0.20625 | M86: 0 | N86: 0
B87: 2050 | G87: Corn | H87: 500-599 | I87: 2022 | J87: Eastern Shore | K87: February | L87: 0.2563157895 | M87: 0 | N87: 0
B88: 2075 | G88: Corn | H88: 500-599 | I88: 2022 | J88: Eastern Shore | K88: March | L88: -0.03423913043 | M88: 0 | N88: 0
B89: 2100 | G89: Corn | H89: 500-599 | I89: 2022 | J89: Eastern Shore | K89: April | L89: -0.470625 | M89: 0 | N89: 0
B90: 2125 | G90: Corn | H90: 500-599 | I90: 2022 | J90: Eastern Shore | K90: May | L90: -0.5001190476 | M90: 0 | N90: 0
B91: 2150 | G91: Corn | H91: 500-599 | I91: 2022 | J91: Eastern Shore | K91: June | L91: -0.694047619 | M91: 0 | N91: 0
B92: 2175 | G92: Corn | H92: 500-599 | I92: 2022 | J92: Eastern Shore | K92: July | L92: -0.7715 | M92: 0 | N92: 0
B93: 2200 | G93: Corn | H93: 500-599 | I93: 2022 | J93: Eastern Shore | K93: August | L93: 0.3092391304 | M93: 0 | N93: 0
B94: 2225 | G94: Corn | H94: 500-599 | I94: 2022 | J94: Eastern Shore | K94: September | L94: -0.116547619 | M94: 0 | N94: 0
B95: 2250 | G95: Corn | H95: 500-599 | I95: 2022 | J95: Eastern Shore | K95: October | L95: -0.1954761905 | M95: 0 | N95: 0
B96: 2275 | G96: Corn | H96: 500-599 | I96: 2022 | J96: Eastern Shore | K96: November | L96: -0.2923809524 | M96: 0 | N96: 0
B97: 2300 | G97: Corn | H97: 500-599 | I97: 2022 | J97: Eastern Shore | K97: December | L97: -0.3185714286 | M97: 0 | N97: 0
B98: 2325 | G98: Corn | H98: 600-699 | I98: 3 yr avg | J98: Eastern Shore | K98: January | L98: 0.2099738931 | M98: 0.2099738931 | N98: 0
B99: 2350 | G99: Corn | H99: 600-699 | I99: 3 yr avg | J99: Eastern Shore | K99: February | L99: 0.2316795523 | M99: 0 | N99: 0.2316795523
B100: 2375 | G100: Corn | H100: 600-699 | I100: 3 yr avg | J100: Eastern Shore | K100: March | L100: 0.1682330698 | M100: 0 | N100: 0
B101: 2400 | G101: Corn | H101: 600-699 | I101: 3 yr avg | J101: Eastern Shore | K101: April | L101: 0.04987103175 | M101: 0 | N101: 0
B102: 2425 | G102: Corn | H102: 600-699 | I102: 3 yr avg | J102: Eastern Shore | K102: May | L102: -0.006998015873 | M102: 0 | N102: 0
B103: 2450 | G103: Corn | H103: 600-699 | I103: 3 yr avg | J103: Eastern Shore | K103: June | L103: 0.01024170274 | M103: 0 | N103: 0
B104: 2475 | G104: Corn | H104: 600-699 | I104: 3 yr avg | J104: Eastern Shore | K104: July | L104: -0.05100505051 | M104: 0 | N104: 0
B105: 2500 | G105: Corn | H105: 600-699 | I105: 3 yr avg | J105: Eastern Shore | K105: August | L105: 0.298472928 | M105: 0 | N105: 0
B106: 2525 | G106: Corn | H106: 600-699 | I106: 3 yr avg | J106: Eastern Shore | K106: September | L106: 0.0378968254 | M106: 0 | N106: 0
B107: 2550 | G107: Corn | H107: 600-699 | I107: 3 yr avg | J107: Eastern Shore | K107: October | L107: -0.0185479798 | M107: 0 | N107: 0
B108: 2575 | G108: Corn | H108: 600-699 | I108: 3 yr avg | J108: Eastern Shore | K108: November | L108: -0.0507281746 | M108: 0 | N108: 0
B109: 2600 | G109: Corn | H109: 600-699 | I109: 3 yr avg | J109: Eastern Shore | K109: December | L109: 0.02596861472 | M109: 0 | N109: 0
B110: 2625 | G110: Corn | H110: 700-799 | I110: 5 yr avg | J110: Eastern Shore | K110: January | L110: 0.1901510025 | M110: 0 | N110: 0
B111: 2650 | G111: Corn | H111: 700-799 | I111: 5 yr avg | J111: Eastern Shore | K111: February | L111: 0.2245866788 | M111: 0 | N111: 0
B112: 2675 | G112: Corn | H112: 700-799 | I112: 5 yr avg | J112: Eastern Shore | K112: March | L112: 0.2344636514 | M112: 0 | N112: 0
B113: 2700 | G113: Corn | H113: 700-799 | I113: 5 yr avg | J113: Eastern Shore | K113: April | L113: 0.1485416667 | M113: 0 | N113: 0
B114: 2725 | G114: Corn | H114: 700-799 | I114: 5 yr avg | J114: Eastern Shore | K114: May | L114: 0.1382784632 | M114: 0 | N114: 0
B115: 2750 | G115: Corn | H115: 700-799 | I115: 5 yr avg | J115: Eastern Shore | K115: June | L115: 0.04371774892 | M115: 0 | N115: 0
B116: 2775 | G116: Corn | H116: 700-799 | I116: 5 yr avg | J116: Eastern Shore | K116: July | L116: 0.07423106061 | M116: 0 | N116: 0
B117: 2800 | G117: Corn | H117: 700-799 | I117: 5 yr avg | J117: Eastern Shore | K117: August | L117: 0.3578564841 | M117: 0 | N117: 0
B118: 2825 | G118: Corn | H118: 700-799 | I118: 5 yr avg | J118: Eastern Shore | K118: September | L118: 0.07834491342 | M118: 0 | N118: 0
B119: 2850 | G119: Corn | H119: 700-799 | I119: 5 yr avg | J119: Eastern Shore | K119: October | L119: 0.05430273386 | M119: 0 | N119: 0
B120: 2875 | G120: Corn | H120: 700-799 | I120: 5 yr avg | J120: Eastern Shore | K120: November | L120: 0.01492179089 | M120: 0 | N120: 0
B121: 2900 | G121: Corn | H121: 700-799 | I121: 5 yr avg | J121: Eastern Shore | K121: December | L121: 0.0962478355 | M121: 0 | N121: 0
B122: 2925 | G122: Corn | H122: 300-399 | I122: 2015 | J122: Harrisonburg | K122: January | L122: 0.369 | M122: 0 | N122: 0
B123: 2950 | G123: Corn | H123: 300-399 | I123: 2015 | J123: Harrisonburg | K123: February | L123: 0.5531578947 | M123: 0 | N123: 0
B124: 2975 | G124: Corn | H124: 300-399 | I124: 2015 | J124: Harrisonburg | K124: March | L124: 0.5655681818 | M124: 0 | N124: 0
B125: 3000 | G125: Corn | H125: 300-399 | I125: 2015 | J125: Harrisonburg | K125: April | L125: 0.5503571429 | M125: 0 | N125: 0
B126: 3025 | G126: Corn | H126: 300-399 | I126: 2015 | J126: Harrisonburg | K126: May | L126: 0.632625 | M126: 0 | N126: 0
B127: 3050 | G127: Corn | H127: 300-399 | I127: 2015 | J127: Harrisonburg | K127: June | L127: 0.4710227273 | M127: 0 | N127: 0
B128: 3075 | G128: Corn | H128: 300-399 | I128: 2015 | J128: Harrisonburg | K128: July | L128: 0.1414772727 | M128: 0 | N128: 0
B129: 3100 | G129: Corn | H129: 300-399 | I129: 2015 | J129: Harrisonburg | K129: August | L129: 0.4128571429 | M129: 0 | N129: 0
B130: 3125 | G130: Corn | H130: 300-399 | I130: 2015 | J130: Harrisonburg | K130: September | L130: 0.3670238095 | M130: =IF(AND(R$9=$G130,R$17=$J130,R$12=$I130,R$18=$K130),$L130,0) -> 0 | N130: =IF(AND(S$9=$G130,S$17=$J130,S$12=$I130,S$18=$K130),$L130,0) -> 0
B131: 3150 | G131: Corn | H131: 300-399 | I131: 2015 | J131: Harrisonburg | K131: October | L131: 0.3044318182 | M131: 0 | N131: 0
B132: 3175 | G132: Corn | H132: 300-399 | I132: 2015 | J132: Harrisonburg | K132: November | L132: 0.266875 | M132: 0 | N132: 0
B133: 3200 | G133: Corn | H133: 300-399 | I133: 2015 | J133: Harrisonburg | K133: December | L133: 0.1718181818 | M133: 0 | N133: 0
B134: 3225 | G134: Corn | H134: 400-499 | I134: 2016 | J134: Harrisonburg | K134: January | L134: 0.3728789474 | M134: 0 | N134: 0
B135: 3250 | G135: Corn | H135: 400-499 | I135: 2016 | J135: Harrisonburg | K135: February | L135: 0.52475 | M135: 0 | N135: 0
B136: =B135+25 -> 3275 | G136: Corn | H136: 400-499 | I136: 2016 | J136: Harrisonburg | K136: March | L136: 0.4001136364 | M136: 0 | N136: 0
B137: 3300 | G137: Corn | H137: 400-499 | I137: 2016 | J137: Harrisonburg | K137: April | L137: 0.3757142857 | M137: 0 | N137: 0
B138: 3325 | G138: Corn | H138: 400-499 | I138: 2016 | J138: Harrisonburg | K138: May | L138: 0.5046333333 | M138: 0 | N138: 0
B139: 3350 | G139: Corn | H139: 400-499 | I139: 2016 | J139: Harrisonburg | K139: June | L139: 0.4083863636 | M139: 0 | N139: 0
B140: 3375 | G140: Corn | H140: 400-499 | I140: 2016 | J140: Harrisonburg | K140: July | L140: 0.702 | M140: 0 | N140: 0
B141: 3400 | G141: Corn | H141: 400-499 | I141: 2016 | J141: Harrisonburg | K141: August | L141: 0.7745652174 | M141: 0 | N141: 0
B142: 3425 | G142: Corn | H142: 400-499 | I142: 2016 | J142: Harrisonburg | K142: September | L142: 0.402952381 | M142: 0 | N142: 0
B143: 3450 | G143: Corn | H143: 400-499 | I143: 2016 | J143: Harrisonburg | K143: October | L143: 0.3814190476 | M143: 0 | N143: 0
B144: 3475 | G144: Corn | H144: 400-499 | I144: 2016 | J144: Harrisonburg | K144: November | L144: 0.5569380952 | M144: 0 | N144: 0
B145: 3500 | G145: Corn | H145: 400-499 | I145: 2016 | J145: Harrisonburg | K145: December | L145: 0.6962142857 | M145: 0 | N145: 0
B146: 3525 | G146: Corn | H146: 500-599 | I146: 2017 | J146: Harrisonburg | K146: January | L146: 0.7177757353 | M146: 0 | N146: 0
B147: 3550 | G147: Corn | H147: 500-599 | I147: 2017 | J147: Harrisonburg | K147: February | L147: 0.6928947368 | M147: 0 | N147: 0
B148: 3575 | G148: Corn | H148: 500-599 | I148: 2017 | J148: Harrisonburg | K148: March | L148: 0.762173913 | M148: 0 | N148: 0
B149: 3600 | G149: Corn | H149: 500-599 | I149: 2017 | J149: Harrisonburg | K149: April | L149: 0.7398684211 | M149: 0 | N149: 0
B150: 3625 | G150: Corn | H150: 500-599 | I150: 2017 | J150: Harrisonburg | K150: May | L150: 0.7388636364 | M150: 0 | N150: 0
B151: 3650 | G151: Corn | H151: 500-599 | I151: 2017 | J151: Harrisonburg | K151: June | L151: 0.7571590909 | M151: 0 | N151: 0
B152: 3675 | G152: Corn | H152: 500-599 | I152: 2017 | J152: Harrisonburg | K152: July | L152: 0.774 | M152: 0 | N152: 0
B153: 3700 | G153: Corn | H153: 500-599 | I153: 2017 | J153: Harrisonburg | K153: August | L153: 0.8088043478 | M153: 0 | N153: 0
B154: 3725 | G154: Corn | H154: 500-599 | I154: 2017 | J154: Harrisonburg | K154: September | L154: 0.7555 | M154: 0 | N154: 0
B155: 3750 | G155: Corn | H155: 500-599 | I155: 2017 | J155: Harrisonburg | K155: October | L155: 0.6061363636 | M155: 0 | N155: 0
B156: 3775 | G156: Corn | H156: 500-599 | I156: 2017 | J156: Harrisonburg | K156: November | L156: 0.5632142857 | M156: 0 | N156: 0
B157: 3800 | G157: Corn | H157: 500-599 | I157: 2017 | J157: Harrisonburg | K157: December | L157: 0.5645 | M157: 0 | N157: 0
B158: 3825 | G158: Corn | H158: 600-699 | I158: 2018 | J158: Harrisonburg | K158: January | L158: 0.5527380952 | M158: 0 | N158: 0
B159: 3850 | G159: Corn | H159: 600-699 | I159: 2018 | J159: Harrisonburg | K159: February | L159: 0.4507894737 | M159: 0 | N159: 0
B160: 3875 | G160: Corn | H160: 600-699 | I160: 2018 | J160: Harrisonburg | K160: March | L160: 0.2939285714 | M160: 0 | N160: 0
B161: 3900 | G161: Corn | H161: 600-699 | I161: 2018 | J161: Harrisonburg | K161: April | L161: 0.4701190476 | M161: 0 | N161: 0
B162: 3925 | G162: Corn | H162: 600-699 | I162: 2018 | J162: Harrisonburg | K162: May | L162: 0.53 | M162: 0 | N162: 0
B163: 3950 | G163: Corn | H163: 600-699 | I163: 2018 | J163: Harrisonburg | K163: June | L163: 0.2651136364 | M163: 0 | N163: 0
B164: 3975 | G164: Corn | H164: 600-699 | I164: 2018 | J164: Harrisonburg | K164: July | L164: 0.399625 | M164: 0 | N164: 0
B165: 4000 | G165: Corn | H165: 600-699 | I165: 2018 | J165: Harrisonburg | K165: August | L165: 0.52125 | M165: 0 | N165: 0
B166: 4025 | G166: Corn | H166: 600-699 | I166: 2018 | J166: Harrisonburg | K166: September | L166: 0.2796590909 | M166: 0 | N166: 0
B167: 4050 | G167: Corn | H167: 600-699 | I167: 2018 | J167: Harrisonburg | K167: October | L167: 0.464875 | M167: 0 | N167: 0
B168: 4075 | G168: Corn | H168: 600-699 | I168: 2018 | J168: Harrisonburg | K168: November | L168: 0.1680434783 | M168: 0 | N168: 0
B169: 4100 | G169: Corn | H169: 600-699 | I169: 2018 | J169: Harrisonburg | K169: December | L169: 0.3825 | M169: 0 | N169: 0
B170: 4125 | G170: Corn | H170: 700-799 | I170: 2019 | J170: Harrisonburg | K170: January | L170: 0.2480952381 | M170: 0 | N170: 0
B171: 4150 | G171: Corn | H171: 700-799 | I171: 2019 | J171: Harrisonburg | K171: February | L171: 0.3421052632 | M171: 0 | N171: 0
B172: 4175 | G172: Corn | H172: 700-799 | I172: 2019 | J172: Harrisonburg | K172: March | L172: 0.5686904762 | M172: 0 | N172: 0
B173: 4200 | G173: Corn | H173: 700-799 | I173: 2019 | J173: Harrisonburg | K173: April | L173: 0.7579761905 | M173: 0 | N173: 0
B174: 4225 | G174: Corn | H174: 700-799 | I174: 2019 | J174: Harrisonburg | K174: May | L174: 0.7523863636 | M174: 0 | N174: 0
B175: 4250 | G175: Corn | H175: 700-799 | I175: 2019 | J175: Harrisonburg | K175: June | L175: 0.47275 | M175: 0 | N175: 0
B176: 4275 | G176: Corn | H176: 700-799 | I176: 2019 | J176: Harrisonburg | K176: July | L176: 0.7395454545 | M176: 0 | N176: 0
B177: 4300 | G177: Corn | H177: 700-799 | I177: 2019 | J177: Harrisonburg | K177: August | L177: 1.187613636 | M177: 0 | N177: 0
B178: 4325 | G178: Corn | H178: 700-799 | I178: 2019 | J178: Harrisonburg | K178: September | L178: 1.003375 | M178: 0 | N178: 0
B179: 4350 | G179: Corn | H179: 700-799 | I179: 2019 | J179: Harrisonburg | K179: October | L179: 0.6422826087 | M179: 0 | N179: 0
B180: 4375 | G180: Corn | H180: 700-799 | I180: 2019 | J180: Harrisonburg | K180: November | L180: 0.70875 | M180: 0 | N180: 0
B181: 4400 | G181: Corn | H181: 700-799 | I181: 2019 | J181: Harrisonburg | K181: December | L181: 0.6208333333 | M181: 0 | N181: 0
B182: 4425 | G182: Corn | H182: 300-399 | I182: 2020 | J182: Harrisonburg | K182: January | L182: 0.6766190476 | M182: 0 | N182: 0
B183: 4450 | G183: Corn | H183: 300-399 | I183: 2020 | J183: Harrisonburg | K183: February | L183: 0.5955263158 | M183: 0 | N183: 0
B184: 4475 | G184: Corn | H184: 300-399 | I184: 2020 | J184: Harrisonburg | K184: March | L184: 0.6394818182 | M184: 0 | N184: 0
B185: 4500 | G185: Corn | H185: 300-399 | I185: 2020 | J185: Harrisonburg | K185: April | L185: 0.930952381 | M185: 0 | N185: 0
B186: 4525 | G186: Corn | H186: 300-399 | I186: 2020 | J186: Harrisonburg | K186: May | L186: 0.778 | M186: 0 | N186: 0
B187: 4550 | G187: Corn | H187: 300-399 | I187: 2020 | J187: Harrisonburg | K187: June | L187: 0.6738636364 | M187: 0 | N187: 0
B188: 4575 | G188: Corn | H188: 300-399 | I188: 2020 | J188: Harrisonburg | K188: July | L188: 0.6943181818 | M188: 0 | N188: 0
B189: 4600 | G189: Corn | H189: 300-399 | I189: 2020 | J189: Harrisonburg | K189: August | L189: 0.698452381 | M189: 0 | N189: 0
B190: 4625 | G190: Corn | H190: 300-399 | I190: 2020 | J190: Harrisonburg | K190: September | L190: 0.5111904762 | M190: 0 | N190: 0
B191: 4650 | G191: Corn | H191: 300-399 | I191: 2020 | J191: Harrisonburg | K191: October | L191: 0.4360227273 | M191: 0 | N191: 0
B192: 4675 | G192: Corn | H192: 300-399 | I192: 2020 | J192: Harrisonburg | K192: November | L192: 0.564125 | M192: 0 | N192: 0
B193: 4700 | G193: Corn | H193: 300-399 | I193: 2020 | J193: Harrisonburg | K193: December | L193: 0.6803409091 | M193: 0 | N193: 0
B194: 4725 | G194: Corn | H194: 400-499 | I194: 2021 | J194: Harrisonburg | K194: January | L194: 0.6960526316 | M194: =IF(AND(R$9=$G194,R$17=$J194,R$12=$I194,R$18=$K194),$L194,0) -> 0 | N194: =IF(AND(S$9=$G194,S$17=$J194,S$12=$I194,S$18=$K194),$L194,0) -> 0
B195: 4750 | G195: Corn | H195: 400-499 | I195: 2021 | J195: Harrisonburg | K195: February | L195: 0.6143965517 | M195: 0 | N195: 0
B196: 4775 | G196: Corn | H196: 400-499 | I196: 2021 | J196: Harrisonburg | K196: March | L196: 0.4819565217 | M196: 0 | N196: 0
B197: 4800 | G197: Corn | H197: 400-499 | I197: 2021 | J197: Harrisonburg | K197: April | L197: 0.4192857143 | M197: 0 | N197: 0
B198: 4825 | G198: Corn | H198: 400-499 | I198: 2021 | J198: Harrisonburg | K198: May | L198: 0.466125 | M198: 0 | N198: 0
B199: 4850 | G199: Corn | H199: 400-499 | I199: 2021 | J199: Harrisonburg | K199: June | L199: 0.6659090909 | M199: 0 | N199: 0
B200: =B199+25 -> 4875 | G200: Corn | H200: 400-499 | I200: 2021 | J200: Harrisonburg | K200: July | L200: 0.6691666667 | M200: 0 | N200: 0
... 3805 more rows

Sheet Futures1 (hidden)
A1: Ticker | B1: URL | D1: Ticker | E1: URL | F1: FetchTickers.Contract | G1: FetchTickers.Last | H1: FetchTickers.Change | I1: FetchTickers.Open | J1: FetchTickers.High | K1: FetchTickers.Low | L1: FetchTickers.Volume | M1: FetchTickers.Date
A2: ZS | B2: ="https://www.agriculture.com/markets/commodity-prices/CBOT/"&A2 -> https://www.agriculture.com/markets/commodity-prices/CBOT/ZS | D2: ZS | E2: https://www.agriculture.com/markets/commodity-prices/CBOT/ZS | F2: Cash (ZSY00) | G2: 1343.000s | H2: -7 | I2: 1343 | J2: 1343 | K2: 1343 | L2: 0
A3: ZC | B3: ="https://www.agriculture.com/markets/commodity-prices/CBOT/"&A3 -> https://www.agriculture.com/markets/commodity-prices/CBOT/ZC | D3: ZS | E3: https://www.agriculture.com/markets/commodity-prices/CBOT/ZS | F3: Jul '23 (ZSN23) | G3: 1338.000 | H3: 4.75 | I3: 1333.25 | J3: 1343 | K3: 1330.25 | L3: 24989
A4: ZW | B4: ="https://www.agriculture.com/markets/commodity-prices/CBOT/"&A4 -> https://www.agriculture.com/markets/commodity-prices/CBOT/ZW | D4: ZS | E4: https://www.agriculture.com/markets/commodity-prices/CBOT/ZS | F4: Aug '23 (ZSQ23) | G4: 1276.750 | H4: 7.25 | I4: 1268.75 | J4: 1282.25 | K4: 1266 | L4: 3544
D5: ZS | E5: https://www.agriculture.com/markets/commodity-prices/CBOT/ZS | F5: Sep '23 (ZSU23) | G5: 1212.000 | H5: 8.25 | I5: 1201.5 | J5: 1216.75 | K5: 1197.75 | L5: 1449
D6: ZS | E6: https://www.agriculture.com/markets/commodity-prices/CBOT/ZS | F6: Nov '23 (ZSX23) | G6: 1197.750 | H6: 10.75 | I6: 1187 | J6: 1203.5 | K6: 1181 | L6: 14762
D7: ZS | E7: https://www.agriculture.com/markets/commodity-prices/CBOT/ZS | F7: Jan '24 (ZSF24) | G7: 1207.500 | H7: 10.25 | I7: 1196.25 | J7: 1213 | K7: 1191 | L7: 2555
D8: ZS | E8: https://www.agriculture.com/markets/commodity-prices/CBOT/ZS | F8: Mar '24 (ZSH24) | G8: 1208.750 | H8: 8.25 | I8: 1199.5 | J8: 1215 | K8: 1194.25 | L8: 2743
D9: ZS | E9: https://www.agriculture.com/markets/commodity-prices/CBOT/ZS | F9: May '24 (ZSK24) | G9: 1213.000 | H9: 7 | I9: 1200.75 | J9: 1219 | K9: 1199.5 | L9: 1457
D10: ZS | E10: https://www.agriculture.com/markets/commodity-prices/CBOT/ZS | F10: Jul '24 (ZSN24) | G10: 1217.750 | H10: 6.5 | I10: 1211 | J10: 1223.25 | K10: 1207.25 | L10: 436
D11: ZS | E11: https://www.agriculture.com/markets/commodity-prices/CBOT/ZS | F11: Aug '24 (ZSQ24) | G11: 1201.500s | H11: -1.25 | I11: 1201.5 | J11: 1201.5 | K11: 1196.5 | L11: 30
D12: ZS | E12: https://www.agriculture.com/markets/commodity-prices/CBOT/ZS | F12: Sep '24 (ZSU24) | G12: 1175.000s | H12: -2.25 | I12: 1175 | J12: 1175 | K12: 1171.25 | L12: 7
D13: ZS | E13: https://www.agriculture.com/markets/commodity-prices/CBOT/ZS | F13: Nov '24 (ZSX24) | G13: 1168.500 | H13: 6.5 | I13: 1162 | J13: 1174.5 | K13: 1158.5 | L13: 48
D14: ZS | E14: https://www.agriculture.com/markets/commodity-prices/CBOT/ZS | F14: Jan '25 (ZSF25) | G14: 1163.500s | H14: -3 | I14: 1163.5 | J14: 1163.5 | K14: 1163.5 | L14: 0
D15: ZS | E15: https://www.agriculture.com/markets/commodity-prices/CBOT/ZS | F15: Mar '25 (ZSH25) | G15: 1158.500s | H15: -3 | I15: 1158.5 | J15: 1158.5 | K15: 1158.5 | L15: 0
D16: ZS | E16: https://www.agriculture.com/markets/commodity-prices/CBOT/ZS | F16: May '25 (ZSK25) | G16: 1148.250s | H16: -3 | I16: 1148.25 | J16: 1148.25 | K16: 1148.25 | L16: 29
D17: ZS | E17: https://www.agriculture.com/markets/commodity-prices/CBOT/ZS | F17: Jul '25 (ZSN25) | G17: 1152.500s | H17: -3 | I17: 1152.5 | J17: 1152.5 | K17: 1152.5 | L17: 1
D18: ZS | E18: https://www.agriculture.com/markets/commodity-prices/CBOT/ZS | F18: Aug '25 (ZSQ25) | G18: 1141.750s | H18: -3 | I18: 1141.75 | J18: 1141.75 | K18: 1141.75 | L18: 0
D19: ZS | E19: https://www.agriculture.com/markets/commodity-prices/CBOT/ZS | F19: Sep '25 (ZSU25) | G19: 1120.750s | H19: -3 | I19: 1120.75 | J19: 1120.75 | K19: 1120.75 | L19: 0
D20: ZS | E20: https://www.agriculture.com/markets/commodity-prices/CBOT/ZS | F20: Nov '25 (ZSX25) | G20: 1125.000 | H20: 8 | I20: 1125 | J20: 1125 | K20: 1125 | L20: 1
D21: ZS | E21: https://www.agriculture.com/markets/commodity-prices/CBOT/ZS | F21: Jul '26 (ZSN26) | G21: 1113.000s | H21: -0.25 | I21: 1113 | J21: 1113 | K21: 1113 | L21: 1
D22: ZS | E22: https://www.agriculture.com/markets/commodity-prices/CBOT/ZS | F22: Nov '26 (ZSX26) | G22: 1077.250s | H22: -0.25 | I22: 1077.25 | J22: 1077.25 | K22: 1077.25 | L22: 2
D23: ZC | E23: https://www.agriculture.com/markets/commodity-prices/CBOT/ZC | F23: Cash (ZCY00) | G23: 580-2s | L23: 0
D24: ZC | E24: https://www.agriculture.com/markets/commodity-prices/CBOT/ZC | F24: Jul '23 (ZCN23) | G24: 559-2 | L24: 27118
D25: ZC | E25: https://www.agriculture.com/markets/commodity-prices/CBOT/ZC | F25: Sep '23 (ZCU23) | G25: 501-4 | L25: 16738
D26: ZC | E26: https://www.agriculture.com/markets/commodity-prices/CBOT/ZC | F26: Dec '23 (ZCZ23) | G26: 507-0 | L26: 22749
D27: ZC | E27: https://www.agriculture.com/markets/commodity-prices/CBOT/ZC | F27: Mar '24 (ZCH24) | G27: 517-0 | L27: 2267
D28: ZC | E28: https://www.agriculture.com/markets/commodity-prices/CBOT/ZC | F28: May '24 (ZCK24) | G28: 522-6 | L28: 782
D29: ZC | E29: https://www.agriculture.com/markets/commodity-prices/CBOT/ZC | F29: Jul '24 (ZCN24) | G29: 524-6 | L29: 809
D30: ZC | E30: https://www.agriculture.com/markets/commodity-prices/CBOT/ZC | F30: Sep '24 (ZCU24) | G30: 501-4 | L30: 53
D31: ZC | E31: https://www.agriculture.com/markets/commodity-prices/CBOT/ZC | F31: Dec '24 (ZCZ24) | G31: 496-4 | L31: 250
D32: ZC | E32: https://www.agriculture.com/markets/commodity-prices/CBOT/ZC | F32: Mar '25 (ZCH25) | G32: 506-0 | L32: 9
D33: ZC | E33: https://www.agriculture.com/markets/commodity-prices/CBOT/ZC | F33: May '25 (ZCK25) | G33: 504-2s | L33: 3
D34: ZC | E34: https://www.agriculture.com/markets/commodity-prices/CBOT/ZC | F34: Jul '25 (ZCN25) | G34: 508-0 | L34: 2
D35: ZC | E35: https://www.agriculture.com/markets/commodity-prices/CBOT/ZC | F35: Sep '25 (ZCU25) | G35: 468-4s | L35: 0
D36: ZC | E36: https://www.agriculture.com/markets/commodity-prices/CBOT/ZC | F36: Dec '25 (ZCZ25) | G36: 465-4 | L36: 2
D37: ZC | E37: https://www.agriculture.com/markets/commodity-prices/CBOT/ZC | F37: Jul '26 (ZCN26) | G37: 474-2s | L37: 0
D38: ZC | E38: https://www.agriculture.com/markets/commodity-prices/CBOT/ZC | F38: Dec '26 (ZCZ26) | G38: 457-6s | L38: 8
D39: ZW | E39: https://www.agriculture.com/markets/commodity-prices/CBOT/ZW | F39: Cash (ZWY00) | G39: 610-3s | L39: 0
D40: ZW | E40: https://www.agriculture.com/markets/commodity-prices/CBOT/ZW | F40: Jul '23 (ZWN23) | G40: 615-2 | L40: 10975
D41: ZW | E41: https://www.agriculture.com/markets/commodity-prices/CBOT/ZW | F41: Sep '23 (ZWU23) | G41: 627-6 | L41: 2643
D42: ZW | E42: https://www.agriculture.com/markets/commodity-prices/CBOT/ZW | F42: Dec '23 (ZWZ23) | G42: 646-0 | L42: 2074
D43: ZW | E43: https://www.agriculture.com/markets/commodity-prices/CBOT/ZW | F43: Mar '24 (ZWH24) | G43: 661-2 | L43: 637
D44: ZW | E44: https://www.agriculture.com/markets/commodity-prices/CBOT/ZW | F44: May '24 (ZWK24) | G44: 670-0 | L44: 98
D45: ZW | E45: https://www.agriculture.com/markets/commodity-prices/CBOT/ZW | F45: Jul '24 (ZWN24) | G45: 671-4 | L45: 147
D46: ZW | E46: https://www.agriculture.com/markets/commodity-prices/CBOT/ZW | F46: Sep '24 (ZWU24) | G46: 673-6s | L46: 57
D47: ZW | E47: https://www.agriculture.com/markets/commodity-prices/CBOT/ZW | F47: Dec '24 (ZWZ24) | G47: 688-0 | L47: 9
D48: ZW | E48: https://www.agriculture.com/markets/commodity-prices/CBOT/ZW | F48: Mar '25 (ZWH25) | G48: 695-4s | L48: 30
D49: ZW | E49: https://www.agriculture.com/markets/commodity-prices/CBOT/ZW | F49: May '25 (ZWK25) | G49: 697-2s | L49: 0
D50: ZW | E50: https://www.agriculture.com/markets/commodity-prices/CBOT/ZW | F50: Jul '25 (ZWN25) | G50: 688-2s | L50: 1
